Workbook

Sheet липень 2019 2007
I2: Затверджую:
I3: Голова комісії з припинення КП "Бюро" ДМР
I4: Д.А. Селін
I5: "27" червня 2019р.
D7: ШТАТНИЙ РОЗКЛАД
C8: Комунального підприємства "Бюро обліку майнових прав та діяльності з нерухомістю"
D9: Дніпропетровської міської ради
L10: на"01" липня 2019р.
A11: № п/п | B11: Назва структурного підрозділу | C11: Назва посади (професії) | D11: Код за класифікатором професі й | E11: Кіль­кість штатних одиниць | F11: Посадовий оклад, грн. | G11: Доплати (до 50 % до посадового окладу), грн. | H11: Надбавки (за використання в роботы дезинфікуючих та миючих засобів), грн. | I11: ФОТ на 1 шт. од. | J11: Місячний фонд заробітної плати, грн. | K11: Примітка | L11: Кіль­кість штатних одиниць | M11: Відхилення | N11: Примітки
A16: 1 | B16: Управління | C16: Директор | D16: 1210 1 | E16: 1 | F16: 16620 | G16: =F16*0.5 -> 8310 | I16: =F16+G16 -> 24930 | J16: =I16*E16 -> 24930 | L16: 1 | M16: =L16-E16 -> 0
C17: Перший заступник директора | D17: 1210.1 | E17: 1 | F17: 15230 | G17: =F17*0.5 -> 7615 | I17: =F17+G17 -> 22845 | J17: =I17*E17 -> 22845 | L17: 1 | M17: =L17-E17 -> 0
C18: Головний інженер | D18: 2149.2 | E18: 1 | F18: 13850 | G18: 6925 | I18: 20775 | J18: 20775 | L18: 1 | M18: 0
C19: Головний спеціаліст з питань благоутрію | D19: 3439 | E19: 1 | F19: 9200 | G19: 4600 | I19: 13800 | J19: 13800 | L19: 1 | M19: 0
C20: Старший юрисконсульт | D20: 2429 | E20: 2 | F20: 7200 | G20: =F20*0.5 -> 3600 | I20: =F20+G20 -> 10800 | J20: =I20*E20 -> 21600 | L20: 2 | M20: 0
C21: Помічник керівника підприємства | D21: 3436.3 | E21: 1 | F21: 6650 | G21: 3325 | I21: 9975 | J21: =I21*E21 -> 9975 | L21: 1 | M21: =L21-E21 -> 0
C22: Прибиральник територій | D22: 9162 | E22: 2 | F22: 4430 | G22: 2215 | I22: =F22+G22+H22 -> 6645 | J22: =I22*E22 -> 13290 | L22: 2 | M22: =L22-E22 -> 0
C23: Водій автотранспортних засобів | D23: 8322 | E23: 1 | F23: 6650 | G23: 3325 | I23: 9975 | J23: 9975 | L23: 1 | M23: 0
C24: Разом Управління: | E24: 10 | J24: =SUM(J16:J23) -> 137190 | L24: 10 | M24: 0
A25: 3 | B25: Бухгалтерія | C25: Головний бухгалтер | D25: 1231 | E25: 1 | F25: 15230 | G25: 7615 | I25: 22845 | J25: =I25*E25 -> 22845 | L25: 1 | M25: 0
C26: Заступник головного бухгалтера | D26: 1231 | E26: 1 | F26: 9970 | G26: 4985 | I26: 14955 | J26: =I26*E26 -> 14955 | L26: 1 | M26: 0
C27: Провідний бухгалтер | D27: 3433 | E27: 1 | F27: 7200 | G27: 3600 | I27: 10800 | J27: =I27*E27 -> 10800 | L27: 1 | M27: 0
C28: Бухгалтер | D28: 3433 | E28: 1 | F28: 6920 | G28: 3460 | I28: 10380 | J28: =I28*E28 -> 10380 | L28: 1 | M28: 0
C29: Разом відділ: | E29: =SUM(E25:E28) -> 4 | J29: =SUM(J25:J28) -> 58980 | L29: =SUM(L25:L28) -> 4 | M29: 0
A33: 5 | B33: Загальний відділ | C33: Начальник загального відділу | D33: 1239 | E33: 1 | F33: 9970 | G33: 4985 | I33: 14955 | J33: =I33*E33 -> 14955 | L33: 1 | M33: 0
C34: Фахівець | D34: 3439 | E34: 7 | F34: 6650 | G34: 3325 | I34: 9975 | J34: =I34*E34 -> 69825 | L34: 7 | M34: 0
E35: =E33+E34 -> 8 | J35: =J33+J34 -> 84780 | L35: =L33+L34 -> 8
A36: 6 | B36: Відділ оренди | C36: Начальник відділу з питань оренди | D36: 1239 | E36: 1 | F36: =F33 -> 9970 | G36: 4985 | I36: 14955 | J36: =I36*E36 -> 14955 | L36: 1 | M36: 0
C37: Провідний фахівець з питань оренди | D37: 2419.1 | E37: 1 | F37: 7200 | G37: 3600 | I37: 10800 | J37: =I37*E37 -> 10800 | L37: 1 | M37: 0
C38: Фахівець з питань оренди | D38: 3439 | E38: 3 | F38: 6650 | G38: =F38*0.5 -> 3325 | I38: =F38+G38 -> 9975 | J38: =I38*E38 -> 29925 | L38: 3 | M38: 0
C39: Разом відділ: | E39: 5 | J39: =SUM(J36:J38) -> 55680 | L39: 5 | M39: 0
A40: 8 | B40: Відділ дiловодства та облiку кадрiв | C40: Начальник відділу дiловодства та облiку кадрiв | D40: 1232 | E40: 1 | F40: 9970 | G40: =F40*0.5 -> 4985 | I40: =F40+G40 -> 14955 | J40: =I40*E40 -> 14955 | L40: 1 | M40: 0
C41: Разом відділ: | E41: 1 | J41: =SUM(J40:J40) -> 14955 | L41: 1 | M41: 0
B43: ВСЬОГО: | E43: 28 | F43: 234390 | G43: 117195 | I43: 254340 | J43: 351585 | L43: 28 | M43: =L43-E43 -> 0
